[Event "Titled Tuesday Blitz December 27 Early 2022"]
[White "Toropov, Pavel"]
[Black "Bettalli, Francesco"]
[WhiteFideId "24129178"]
[BlackFideId "2816453"]
[WhiteElo "2336"]
[BlackElo "2252"]
[Result "1-0"]
[Round "06"]
[TimeControl "180+2"]
[Date "2022.12.27"]
[WhiteClock "0:01:09"]
[BlackClock "0:01:53"]

1. e4 {[%clk 0:03:00]}  g6 {[%clk 0:02:54]} 2. d4 {[%clk 0:03:00]}  Bg7 {[%clk 0:02:54]} 3. Nc3 {[%clk 0:03:00]}  c6 {[%clk 0:02:53]} 4. h3 {[%clk 0:03:00]}  d5 {[%clk 0:02:52]} 5. e5 {[%clk 0:02:55]}  h5 {[%clk 0:02:53]} 6. Nge2 {[%clk 0:02:50]}  Nh6 {[%clk 0:02:50]} 7. g3 {[%clk 0:02:43]}  Bf5 {[%clk 0:02:48]} 8. Bg2 {[%clk 0:02:41]}  Qb6 {[%clk 0:02:47]} 9. b3 {[%clk 0:02:26]}  Nd7 {[%clk 0:02:45]} 10. Be3 {[%clk 0:02:25]}  e6 {[%clk 0:02:38]} 11. Qd2 {[%clk 0:02:24]}  Qc7 {[%clk 0:02:33]} 12. f3 {[%clk 0:02:21]}  O-O-O {[%clk 0:02:31]} 13. g4 {[%clk 0:02:19]}  hxg4 {[%clk 0:02:31]} 14. hxg4 {[%clk 0:02:19]}  Nxg4 {[%clk 0:02:30]} 15. fxg4 {[%clk 0:02:18]}  Rxh1+ {[%clk 0:02:30]} 16. Bxh1 {[%clk 0:02:18]}  Bxg4 {[%clk 0:02:30]} 17. O-O-O {[%clk 0:02:17]}  a6 {[%clk 0:02:28]} 18. Rf1 {[%clk 0:02:17]}  Bf5 {[%clk 0:02:25]} 19. Ng3 {[%clk 0:02:16]}  c5 {[%clk 0:02:25]} 20. Nxf5 {[%clk 0:02:15]}  gxf5 {[%clk 0:02:26]} 21. Ne2 {[%clk 0:01:56]}  cxd4 {[%clk 0:02:25]} 22. Bxd4 {[%clk 0:01:57]}  Bxe5 {[%clk 0:02:24]} 23. Bxe5 {[%clk 0:01:47]}  Nxe5 {[%clk 0:02:22]} 24. Nd4 {[%clk 0:01:45]}  Rh8 {[%clk 0:02:20]} 25. Kb2 {[%clk 0:01:34]}  Rh2 {[%clk 0:02:18]} 26. Qd1 {[%clk 0:01:24]}  Rh3 {[%clk 0:02:15]} 27. Qe1 {[%clk 0:01:19]}  Rh2 {[%clk 0:02:07]} 28. Rf2 {[%clk 0:01:18]}  Rxf2 {[%clk 0:01:57]} 29. Qxf2 {[%clk 0:01:19]}  Qc5 {[%clk 0:01:50]} 30. Qe3 {[%clk 0:01:09]}  Qb6 {[%clk 0:01:46]} 31. Qxe5 {[%clk 0:01:07]}  Qc7 {[%clk 0:01:42]} 32. Qxc7+ {[%clk 0:01:05]}  Kxc7 {[%clk 0:01:43]} 33. Nxf5 {[%clk 0:01:04]}  exf5 {[%clk 0:01:39]} 34. Bxd5 {[%clk 0:01:03]}  f6 {[%clk 0:01:40]} 35. Kc3 {[%clk 0:01:02]}  b6 {[%clk 0:01:40]} 36. Kd4 {[%clk 0:01:02]}  Kd6 {[%clk 0:01:40]} 37. b4 {[%clk 0:01:00]}  a5 {[%clk 0:01:39]} 38. bxa5 {[%clk 0:00:59]}  bxa5 {[%clk 0:01:40]} 39. c4 {[%clk 0:00:59]}  f4 {[%clk 0:01:40]} 40. c5+ {[%clk 0:01:00]}  Kc7 {[%clk 0:01:41]} 41. Ke4 {[%clk 0:01:00]}  f3 {[%clk 0:01:41]} 42. Kxf3 {[%clk 0:01:00]}  f5 {[%clk 0:01:42]} 43. Kf4 {[%clk 0:01:01]}  Kd7 {[%clk 0:01:42]} 44. Kxf5 {[%clk 0:01:02]}  Kc7 {[%clk 0:01:43]} 45. Ke5 {[%clk 0:01:02]}  Kd7 {[%clk 0:01:44]} 46. Kd4 {[%clk 0:01:03]}  Kc7 {[%clk 0:01:45]} 47. Kc4 {[%clk 0:01:03]}  a4 {[%clk 0:01:46]} 48. Kb4 {[%clk 0:01:04]}  a3 {[%clk 0:01:47]} 49. Kxa3 {[%clk 0:01:04]}  Kd7 {[%clk 0:01:47]} 50. Kb4 {[%clk 0:01:05]}  Kc7 {[%clk 0:01:48]} 51. Kb5 {[%clk 0:01:06]}  Kd7 {[%clk 0:01:49]} 52. Kb6 {[%clk 0:01:06]}  Kc8 {[%clk 0:01:49]} 53. Ka7 {[%clk 0:01:06]}  Kc7 {[%clk 0:01:49]} 54. a4 {[%clk 0:01:07]}  Kc8 {[%clk 0:01:49]} 55. a5 {[%clk 0:01:07]}  Kc7 {[%clk 0:01:50]} 56. a6 {[%clk 0:01:08]}  Kc8 {[%clk 0:01:51]} 57. Bc6 {[%clk 0:01:07]}  Kc7 {[%clk 0:01:52]} 58. Bb7 {[%clk 0:01:08]}  Kd8 {[%clk 0:01:52]} 59. Kb8 {[%clk 0:01:08]}  Kd7 {[%clk 0:01:52]} 60. a7 {[%clk 0:01:09]}  Ke6 {[%clk 0:01:53]} 61. a8=Q {[%clk 0:01:09]} 1-0


[Site "https://www.chess.com"]

[Event "Titled Tuesday Blitz December 27 Early 2022"]
[White "Torres Dominguez, David"]
[Black "Gatterer, Florian"]
[WhiteFideId "2220857"]
[BlackFideId "811688"]
[WhiteElo "1994"]
[BlackElo "2170"]
[Result "1-0"]
[Round "06"]
[TimeControl "180+2"]
[Date "2022.12.27"]
[WhiteClock "0:00:29"]
[BlackClock "0:00:39"]

1. e4 {[%clk 0:02:42]}  c6 {[%clk 0:03:00]} 2. Nf3 {[%clk 0:02:41]}  d5 {[%clk 0:03:00]} 3. d3 {[%clk 0:02:42]}  Bg4 {[%clk 0:02:59]} 4. Be2 {[%clk 0:02:40]}  e6 {[%clk 0:02:54]} 5. O-O {[%clk 0:02:36]}  Nd7 {[%clk 0:02:54]} 6. h3 {[%clk 0:02:28]}  Bh5 {[%clk 0:02:53]} 7. exd5 {[%clk 0:02:22]}  cxd5 {[%clk 0:02:52]} 8. c4 {[%clk 0:02:17]}  Ngf6 {[%clk 0:02:51]} 9. g4 {[%clk 0:02:13]}  Bg6 {[%clk 0:02:50]} 10. g5 {[%clk 0:02:11]}  Nh5 {[%clk 0:02:50]} 11. Nh2 {[%clk 0:02:06]}  Be7 {[%clk 0:02:16]} 12. Bxh5 {[%clk 0:01:57]}  Bxg5 {[%clk 0:02:16]} 13. f4 {[%clk 0:01:48]}  Bf6 {[%clk 0:02:05]} 14. cxd5 {[%clk 0:01:48]}  Bd4+ {[%clk 0:01:54]} 15. Kg2 {[%clk 0:01:46]}  Nf6 {[%clk 0:01:47]} 16. Bxg6 {[%clk 0:01:41]}  hxg6 {[%clk 0:01:43]} 17. Qa4+ {[%clk 0:01:37]}  Kf8 {[%clk 0:01:35]} 18. Qxd4 {[%clk 0:01:37]}  Nxd5 {[%clk 0:01:34]} 19. Nc3 {[%clk 0:01:33]}  Qh4 {[%clk 0:01:29]} 20. Rf3 {[%clk 0:01:25]}  Rd8 {[%clk 0:01:14]} 21. Nxd5 {[%clk 0:01:17]}  Rxd5 {[%clk 0:01:13]} 22. Qb4+ {[%clk 0:01:16]}  Kg8 {[%clk 0:01:13]} 23. Bd2 {[%clk 0:00:56]}  a5 {[%clk 0:00:56]} 24. Qxb7 {[%clk 0:00:54]}  Qf6 {[%clk 0:00:49]} 25. Rc1 {[%clk 0:00:46]}  Kh7 {[%clk 0:00:45]} 26. Rc7 {[%clk 0:00:38]}  Qf5 {[%clk 0:00:45]} 27. Rxf7 {[%clk 0:00:32]}  Qh5 {[%clk 0:00:38]} 28. Rxg7+ {[%clk 0:00:31]}  Kh6 {[%clk 0:00:39]} 29. Ng4+ {[%clk 0:00:29]} 1-0


[Site "https://www.chess.com"]

[Event "Titled Tuesday Blitz December 27 Early 2022"]
[White "Troltenier, Dirk"]
[Black "Dias, Joao Batista"]
[WhiteFideId "4606400"]
[BlackFideId "2108240"]
[WhiteElo "2234"]
[BlackElo "1796"]
[Result "1-0"]
[Round "06"]
[TimeControl "180+2"]
[Date "2022.12.27"]
[WhiteClock "0:00:16"]
[BlackClock "0:01:12"]

1. e4 {[%clk 0:03:00]}  e5 {[%clk 0:02:59]} 2. Nf3 {[%clk 0:02:59]}  Nc6 {[%clk 0:02:58]} 3. Bb5 {[%clk 0:03:00]}  d6 {[%clk 0:02:58]} 4. O-O {[%clk 0:02:58]}  Nf6 {[%clk 0:02:57]} 5. Nc3 {[%clk 0:02:57]}  Be7 {[%clk 0:02:57]} 6. d4 {[%clk 0:02:57]}  exd4 {[%clk 0:02:56]} 7. Nxd4 {[%clk 0:02:56]}  Bd7 {[%clk 0:02:56]} 8. Re1 {[%clk 0:02:56]}  O-O {[%clk 0:02:56]} 9. b3 {[%clk 0:02:47]}  Nxd4 {[%clk 0:02:54]} 10. Qxd4 {[%clk 0:02:46]}  Ng4 {[%clk 0:02:51]} 11. Bxd7 {[%clk 0:02:34]}  Qxd7 {[%clk 0:02:48]} 12. Nd5 {[%clk 0:02:25]}  Bd8 {[%clk 0:02:45]} 13. Bb2 {[%clk 0:01:58]}  f6 {[%clk 0:02:44]} 14. h3 {[%clk 0:01:46]}  Ne5 {[%clk 0:02:40]} 15. Rad1 {[%clk 0:01:42]}  c6 {[%clk 0:02:35]} 16. Ne3 {[%clk 0:01:41]}  Bb6 {[%clk 0:02:35]} 17. Qxd6 {[%clk 0:01:34]}  Qxd6 {[%clk 0:02:34]} 18. Rxd6 {[%clk 0:01:34]}  Rad8 {[%clk 0:02:31]} 19. Rxd8 {[%clk 0:01:21]}  Rxd8 {[%clk 0:02:30]} 20. Rd1 {[%clk 0:01:22]}  Nf7 {[%clk 0:02:18]} 21. Rxd8+ {[%clk 0:01:16]}  Nxd8 {[%clk 0:02:17]} 22. Nc4 {[%clk 0:01:17]}  Bc7 {[%clk 0:02:16]} 23. Kf1 {[%clk 0:01:13]}  Kf7 {[%clk 0:02:16]} 24. Ke2 {[%clk 0:01:12]}  Ke6 {[%clk 0:02:16]} 25. Bd4 {[%clk 0:01:09]}  a6 {[%clk 0:02:12]} 26. Bb6 {[%clk 0:01:07]}  Bxb6 {[%clk 0:02:04]} 27. Nxb6 {[%clk 0:01:08]}  Ke5 {[%clk 0:02:03]} 28. Ke3 {[%clk 0:01:04]}  f5 {[%clk 0:01:59]} 29. f4+ {[%clk 0:00:56]}  Ke6 {[%clk 0:01:59]} 30. e5 {[%clk 0:00:56]}  Nf7 {[%clk 0:01:56]} 31. Na4 {[%clk 0:00:45]}  Nd8 {[%clk 0:01:47]} 32. Kd4 {[%clk 0:00:40]}  h6 {[%clk 0:01:44]} 33. h4 {[%clk 0:00:32]}  Kd7 {[%clk 0:01:43]} 34. Nc5+ {[%clk 0:00:22]}  Kc7 {[%clk 0:01:43]} 35. Nd3 {[%clk 0:00:19]}  Ne6+ {[%clk 0:01:41]} 36. Ke3 {[%clk 0:00:16]}  c5 {[%clk 0:01:37]} 37. c3 {[%clk 0:00:15]}  Kc6 {[%clk 0:01:37]} 38. Nf2 {[%clk 0:00:12]}  b5 {[%clk 0:01:33]} 39. Nd1 {[%clk 0:00:11]}  a5 {[%clk 0:01:30]} 40. Nb2 {[%clk 0:00:10]}  Kd5 {[%clk 0:01:28]} 41. g3 {[%clk 0:00:07]}  g5 {[%clk 0:01:28]} 42. fxg5 {[%clk 0:00:04]}  hxg5 {[%clk 0:01:27]} 43. hxg5 {[%clk 0:00:05]}  Kxe5 {[%clk 0:01:24]} 44. Nd3+ {[%clk 0:00:05]}  Kd5 {[%clk 0:01:23]} 45. Nf4+ {[%clk 0:00:04]}  Kd6 {[%clk 0:01:19]} 46. Nxe6 {[%clk 0:00:03]}  Kxe6 {[%clk 0:01:19]} 47. c4 {[%clk 0:00:03]}  bxc4 {[%clk 0:01:18]} 48. bxc4 {[%clk 0:00:04]}  Kf7 {[%clk 0:01:18]} 49. Kf4 {[%clk 0:00:04]}  Kg6 {[%clk 0:01:18]} 50. g4 {[%clk 0:00:05]}  fxg4 {[%clk 0:01:17]} 51. Kxg4 {[%clk 0:00:06]}  a4 {[%clk 0:01:17]} 52. Kf4 {[%clk 0:00:07]}  a3 {[%clk 0:01:17]} 53. Kg4 {[%clk 0:00:08]}  Kg7 {[%clk 0:01:16]} 54. Kf5 {[%clk 0:00:09]}  Kf7 {[%clk 0:01:16]} 55. g6+ {[%clk 0:00:09]}  Kg7 {[%clk 0:01:12]} 56. Kg5 {[%clk 0:00:10]}  Kg8 {[%clk 0:01:11]} 57. Kf6 {[%clk 0:00:10]}  Kf8 {[%clk 0:01:12]} 58. Ke5 {[%clk 0:00:11]}  Kg7 {[%clk 0:01:11]} 59. Kd5 {[%clk 0:00:12]}  Kxg6 {[%clk 0:01:12]} 60. Kxc5 {[%clk 0:00:13]}  Kf7 {[%clk 0:01:13]} 61. Kd6 {[%clk 0:00:13]}  Ke8 {[%clk 0:01:12]} 62. Kc7 {[%clk 0:00:14]}  Ke7 {[%clk 0:01:12]} 63. c5 {[%clk 0:00:15]}  Ke6 {[%clk 0:01:12]} 64. c6 {[%clk 0:00:16]} 1-0


[Site "https://www.chess.com"]

[Event "Titled Tuesday Blitz December 27 Early 2022"]
[White "Tymrakiewicz, Rafal"]
[Black "Van Essen, Mark"]
[WhiteFideId "1108832"]
[BlackFideId "1012819"]
[WhiteElo "2144"]
[BlackElo "2194"]
[Result "1-0"]
[Round "06"]
[TimeControl "180+2"]
[Date "2022.12.27"]
[WhiteClock "0:00:20"]
[BlackClock "0:00:04"]

1. d4 {[%clk 0:02:54]}  Nf6 {[%clk 0:02:58]} 2. Bg5 {[%clk 0:02:53]}  Ne4 {[%clk 0:02:58]} 3. Bf4 {[%clk 0:02:52]}  d5 {[%clk 0:02:57]} 4. e3 {[%clk 0:02:52]}  Bf5 {[%clk 0:02:56]} 5. Bd3 {[%clk 0:02:52]}  e6 {[%clk 0:02:55]} 6. f3 {[%clk 0:02:38]}  Nd6 {[%clk 0:02:54]} 7. Nd2 {[%clk 0:02:31]}  Bxd3 {[%clk 0:02:48]} 8. cxd3 {[%clk 0:02:32]}  Nd7 {[%clk 0:02:43]} 9. e4 {[%clk 0:02:30]}  Be7 {[%clk 0:02:35]} 10. Rc1 {[%clk 0:02:24]}  c6 {[%clk 0:02:31]} 11. Ne2 {[%clk 0:02:22]}  O-O {[%clk 0:02:30]} 12. Nb3 {[%clk 0:02:22]}  a5 {[%clk 0:02:08]} 13. O-O {[%clk 0:02:17]}  a4 {[%clk 0:02:07]} 14. Nc5 {[%clk 0:02:17]}  Nxc5 {[%clk 0:01:52]} 15. dxc5 {[%clk 0:02:17]}  Nb5 {[%clk 0:01:46]} 16. Qc2 {[%clk 0:02:10]}  Qd7 {[%clk 0:01:26]} 17. Rfd1 {[%clk 0:02:09]}  Rfd8 {[%clk 0:01:25]} 18. e5 {[%clk 0:02:05]}  d4 {[%clk 0:01:19]} 19. Bg3 {[%clk 0:01:57]}  Qd5 {[%clk 0:01:19]} 20. Qc4 {[%clk 0:01:48]}  Qxc4 {[%clk 0:01:14]} 21. Rxc4 {[%clk 0:01:48]}  Rd7 {[%clk 0:00:59]} 22. a3 {[%clk 0:01:47]}  g5 {[%clk 0:00:51]} 23. Rdc1 {[%clk 0:01:46]}  h5 {[%clk 0:00:44]} 24. h3 {[%clk 0:01:34]}  Kf8 {[%clk 0:00:43]} 25. h4 {[%clk 0:01:08]}  gxh4 {[%clk 0:00:40]} 26. Bh2 {[%clk 0:01:08]}  Kg7 {[%clk 0:00:39]} 27. Kf2 {[%clk 0:01:07]}  Kh6 {[%clk 0:00:37]} 28. Nf4 {[%clk 0:01:06]}  Rdd8 {[%clk 0:00:36]} 29. R1c2 {[%clk 0:00:56]}  Bg5 {[%clk 0:00:34]} 30. Ne2 {[%clk 0:00:48]}  Be7 {[%clk 0:00:32]} 31. f4 {[%clk 0:00:44]}  Rd7 {[%clk 0:00:31]} 32. Ng1 {[%clk 0:00:44]}  Rdd8 {[%clk 0:00:30]} 33. Nf3 {[%clk 0:00:45]}  Rd7 {[%clk 0:00:27]} 34. Kf1 {[%clk 0:00:45]}  Rdd8 {[%clk 0:00:26]} 35. Bg1 {[%clk 0:00:45]}  Rd7 {[%clk 0:00:18]} 36. Re2 {[%clk 0:00:45]}  Kg6 {[%clk 0:00:15]} 37. Re4 {[%clk 0:00:43]}  Kf5 {[%clk 0:00:15]} 38. Bf2 {[%clk 0:00:28]}  Kg4 {[%clk 0:00:12]} 39. Kg1 {[%clk 0:00:27]}  Ra5 {[%clk 0:00:11]} 40. Kh2 {[%clk 0:00:26]}  Nc7 {[%clk 0:00:08]} 41. Nxd4 {[%clk 0:00:20]}  Bxc5 {[%clk 0:00:07]} 42. f5+ {[%clk 0:00:20]}  Kg5 {[%clk 0:00:04]} 43. Be3# {[%clk 0:00:20]} 1-0


[Site "https://www.chess.com"]

[Event "Titled Tuesday Blitz December 27 Early 2022"]
[White "Vargas Pereda, Jesus Manue"]
[Black "Manon-og, Ramon Jr."]
[WhiteFideId "5115710"]
[BlackFideId "5200776"]
[WhiteElo "1851"]
[BlackElo "1999"]
[Result "1-0"]
[Round "06"]
[TimeControl "180+2"]
[Date "2022.12.27"]
[WhiteClock "0:01:52"]
[BlackClock "0:02:24"]

1. d4 {[%clk 0:02:56]}  Nf6 {[%clk 0:02:58]} 2. Nf3 {[%clk 0:02:55]}  g6 {[%clk 0:02:57]} 3. c4 {[%clk 0:02:43]}  d5 {[%clk 0:02:56]} 4. g3 {[%clk 0:02:38]}  Bg7 {[%clk 0:02:55]} 5. cxd5 {[%clk 0:02:37]}  Nxd5 {[%clk 0:02:55]} 6. Nc3 {[%clk 0:02:33]}  Kf8 {[%clk 0:02:55]} 7. Bg2 {[%clk 0:02:31]}  Nxc3 {[%clk 0:02:55]} 8. bxc3 {[%clk 0:02:30]}  c6 {[%clk 0:02:56]} 9. O-O {[%clk 0:02:29]}  h5 {[%clk 0:02:57]} 10. h4 {[%clk 0:02:29]}  Bd7 {[%clk 0:02:57]} 11. a4 {[%clk 0:02:24]}  a5 {[%clk 0:02:55]} 12. Ba3 {[%clk 0:02:23]}  Be6 {[%clk 0:02:55]} 13. Rb1 {[%clk 0:02:22]}  Qc8 {[%clk 0:02:54]} 14. Kh2 {[%clk 0:02:20]}  Bf5 {[%clk 0:02:54]} 15. Rb2 {[%clk 0:02:14]}  Nd7 {[%clk 0:02:50]} 16. Nd2 {[%clk 0:02:14]}  Nf6 {[%clk 0:02:40]} 17. e4 {[%clk 0:02:12]}  Bg4 {[%clk 0:02:38]} 18. Qb1 {[%clk 0:02:12]}  Be2 {[%clk 0:02:34]} 19. Re1 {[%clk 0:02:07]}  Ng4+ {[%clk 0:02:34]} 20. Kg1 {[%clk 0:02:04]}  Ra6 {[%clk 0:02:34]} 21. Rxe2 {[%clk 0:02:01]}  Bh6 {[%clk 0:02:31]} 22. Rxb7 {[%clk 0:01:55]}  Kg8 {[%clk 0:02:27]} 23. Rb8 {[%clk 0:01:52]}  Qxb8 {[%clk 0:02:24]} 24. Qxb8+ {[%clk 0:01:52]} 1-0


[Site "https://www.chess.com"]

[Event "Titled Tuesday Blitz December 27 Early 2022"]
[White "Vifleemskaia, Svetlana"]
[Black "Graham, Nathaniel"]
[WhiteFideId "4129490"]
[BlackFideId "2007983"]
[WhiteElo "1971"]
[BlackElo "2262"]
[Result "0-1"]
[Round "06"]
[TimeControl "180+2"]
[Date "2022.12.27"]
[WhiteClock "0:00:41"]
[BlackClock "0:00:08"]

1. d4 {[%clk 0:03:00]}  d5 {[%clk 0:02:59]} 2. c4 {[%clk 0:03:00]}  c6 {[%clk 0:02:59]} 3. cxd5 {[%clk 0:03:00]}  cxd5 {[%clk 0:02:59]} 4. Bf4 {[%clk 0:03:00]}  Nf6 {[%clk 0:02:59]} 5. Nc3 {[%clk 0:03:00]}  Nc6 {[%clk 0:02:59]} 6. e3 {[%clk 0:03:00]}  Bf5 {[%clk 0:02:59]} 7. Qb3 {[%clk 0:02:59]}  Qb6 {[%clk 0:02:54]} 8. Qxb6 {[%clk 0:02:58]}  axb6 {[%clk 0:02:54]} 9. Bb5 {[%clk 0:02:59]}  e6 {[%clk 0:02:54]} 10. Nge2 {[%clk 0:02:59]}  Be7 {[%clk 0:02:49]} 11. f3 {[%clk 0:03:00]}  O-O {[%clk 0:02:48]} 12. g4 {[%clk 0:03:00]}  Bg6 {[%clk 0:02:47]} 13. Kf2 {[%clk 0:03:01]}  Rfc8 {[%clk 0:02:45]} 14. h4 {[%clk 0:03:00]}  h5 {[%clk 0:02:43]} 15. g5 {[%clk 0:02:56]}  Ne8 {[%clk 0:02:22]} 16. e4 {[%clk 0:02:52]}  dxe4 {[%clk 0:02:10]} 17. fxe4 {[%clk 0:02:53]}  Nd6 {[%clk 0:02:07]} 18. Bd3 {[%clk 0:02:49]}  Nb4 {[%clk 0:02:01]} 19. Bb1 {[%clk 0:02:48]}  Nc4 {[%clk 0:01:50]} 20. Bc1 {[%clk 0:02:21]}  e5 {[%clk 0:01:36]} 21. d5 {[%clk 0:01:58]}  Bc5+ {[%clk 0:01:35]} 22. Kf3 {[%clk 0:01:57]}  f6 {[%clk 0:01:18]} 23. Ng3 {[%clk 0:01:48]}  fxg5 {[%clk 0:01:15]} 24. hxg5 {[%clk 0:01:48]}  Rf8+ {[%clk 0:01:15]} 25. Kg2 {[%clk 0:01:47]}  Rf2+ {[%clk 0:01:06]} 26. Kh3 {[%clk 0:01:46]}  Nc2 {[%clk 0:00:25]} 27. Bxc2 {[%clk 0:01:43]}  Rxc2 {[%clk 0:00:25]} 28. Nb5 {[%clk 0:01:25]}  Rf8 {[%clk 0:00:20]} 29. b3 {[%clk 0:01:17]}  Nd6 {[%clk 0:00:10]} 30. Nxd6 {[%clk 0:01:11]}  Bxd6 {[%clk 0:00:11]} 31. Be3 {[%clk 0:01:11]}  Be8 {[%clk 0:00:11]} 32. Rhf1 {[%clk 0:01:00]}  Bd7+ {[%clk 0:00:10]} 33. Nf5 {[%clk 0:00:58]}  g6 {[%clk 0:00:08]} 34. Kh4 {[%clk 0:00:45]}  gxf5 {[%clk 0:00:08]} 35. Kxh5 {[%clk 0:00:45]}  f4 {[%clk 0:00:08]} 36. Bxb6 {[%clk 0:00:44]}  Rh2+ {[%clk 0:00:08]} 37. Kg6 {[%clk 0:00:41]}  Be8# {[%clk 0:00:08]} 0-1


[Site "https://www.chess.com"]

[Event "Titled Tuesday Blitz December 27 Early 2022"]
[White "Volkov, Maksim"]
[Black "Goncalves, Davi Sulzbacher"]
[WhiteFideId "54123070"]
[BlackFideId "2154510"]
[WhiteElo "2258"]
[BlackElo "2282"]
[Result "1/2-1/2"]
[Round "06"]
[TimeControl "180+2"]
[Date "2022.12.27"]
[WhiteClock "0:00:03"]
[BlackClock "0:00:03"]

1. d4 {[%clk 0:03:00]}  Nf6 {[%clk 0:02:59]} 2. c4 {[%clk 0:03:00]}  e6 {[%clk 0:03:00]} 3. g3 {[%clk 0:02:58]}  c5 {[%clk 0:02:58]} 4. d5 {[%clk 0:02:58]}  exd5 {[%clk 0:02:59]} 5. cxd5 {[%clk 0:02:59]}  g6 {[%clk 0:02:59]} 6. Nc3 {[%clk 0:02:59]}  Bg7 {[%clk 0:02:59]} 7. Bg2 {[%clk 0:02:59]}  O-O {[%clk 0:02:59]} 8. Nf3 {[%clk 0:02:59]}  Re8 {[%clk 0:02:59]} 9. O-O {[%clk 0:03:00]}  d6 {[%clk 0:02:56]} 10. Bf4 {[%clk 0:02:59]}  Ne4 {[%clk 0:02:56]} 11. Nxe4 {[%clk 0:02:59]}  Rxe4 {[%clk 0:02:56]} 12. Nd2 {[%clk 0:02:59]}  Rxf4 {[%clk 0:02:55]} 13. gxf4 {[%clk 0:03:00]}  Bxb2 {[%clk 0:02:55]} 14. Rb1 {[%clk 0:03:01]}  Bg7 {[%clk 0:02:55]} 15. e4 {[%clk 0:03:01]}  Bh6 {[%clk 0:02:44]} 16. e5 {[%clk 0:02:47]}  Bxf4 {[%clk 0:02:39]} 17. e6 {[%clk 0:02:47]}  fxe6 {[%clk 0:02:17]} 18. dxe6 {[%clk 0:02:46]}  Nc6 {[%clk 0:02:17]} 19. Re1 {[%clk 0:02:40]}  Ne5 {[%clk 0:02:02]} 20. Ne4 {[%clk 0:02:25]}  Bxe6 {[%clk 0:01:55]} 21. Rxb7 {[%clk 0:02:18]}  Qh4 {[%clk 0:01:43]} 22. h3 {[%clk 0:02:00]}  Rf8 {[%clk 0:01:28]} 23. Nxd6 {[%clk 0:01:23]}  Bh2+ {[%clk 0:00:40]} 24. Kxh2 {[%clk 0:01:16]}  Ng4+ {[%clk 0:00:36]} 25. Qxg4 {[%clk 0:00:24]}  Bxg4 {[%clk 0:00:35]} 26. Bd5+ {[%clk 0:00:24]}  Kh8 {[%clk 0:00:35]} 27. Nf7+ {[%clk 0:00:22]}  Rxf7 {[%clk 0:00:24]} 28. Rxf7 {[%clk 0:00:10]}  Qxh3+ {[%clk 0:00:12]} 29. Kg1 {[%clk 0:00:10]}  Bd7 {[%clk 0:00:12]} 30. Ree7 {[%clk 0:00:08]}  Qg4+ {[%clk 0:00:12]} 31. Bg2 {[%clk 0:00:07]}  Qd1+ {[%clk 0:00:10]} 32. Kh2 {[%clk 0:00:05]}  Qh5+ {[%clk 0:00:11]} 33. Kg3 {[%clk 0:00:05]}  Qg4+ {[%clk 0:00:11]} 34. Kh2 {[%clk 0:00:06]}  Qh5+ {[%clk 0:00:12]} 35. Kg1 {[%clk 0:00:06]}  Qd1+ {[%clk 0:00:12]} 36. Bf1 {[%clk 0:00:07]}  Qg4+ {[%clk 0:00:13]} 37. Kh1 {[%clk 0:00:06]}  Qh5+ {[%clk 0:00:13]} 38. Kg2 {[%clk 0:00:06]}  Qg4+ {[%clk 0:00:13]} 39. Kh2 {[%clk 0:00:06]}  Qh5+ {[%clk 0:00:14]} 40. Bh3 {[%clk 0:00:03]}  Qxh3+ {[%clk 0:00:13]} 41. Kg1 {[%clk 0:00:04]}  Qg4+ {[%clk 0:00:13]} 42. Kf1 {[%clk 0:00:04]}  Bb5+ {[%clk 0:00:12]} 43. Ke1 {[%clk 0:00:04]}  Qb4+ {[%clk 0:00:12]} 44. Kd1 {[%clk 0:00:04]}  Qb1+ {[%clk 0:00:10]} 45. Kd2 {[%clk 0:00:04]}  Qb2+ {[%clk 0:00:10]} 46. Ke3 {[%clk 0:00:03]}  Qc3+ {[%clk 0:00:09]} 47. Kf4 {[%clk 0:00:02]}  Qd4+ {[%clk 0:00:05]} 48. Kg3 {[%clk 0:00:01]}  Qd3+ {[%clk 0:00:03]} 49. f3 {[%clk 0:00:02]}  Qd6+ {[%clk 0:00:03]} 50. Kh3 {[%clk 0:00:02]}  Kg8 {[%clk 0:00:01]} 51. Rg7+ {[%clk 0:00:02]}  Kf8 {[%clk 0:00:01]} 52. Rgf7+ {[%clk 0:00:02]}  Kg8 {[%clk 0:00:02]} 53. Rg7+ {[%clk 0:00:03]}  Kf8 {[%clk 0:00:02]} 54. Rgf7+ {[%clk 0:00:03]}  Kg8 {[%clk 0:00:03]} 1/2-1/2


[Site "https://www.chess.com"]

[Event "Titled Tuesday Blitz December 27 Early 2022"]
[White "Vovk, Orest"]
[Black "Iljin, Timofey"]
[WhiteFideId "14113490"]
[BlackFideId "14110180"]
[WhiteElo "2315"]
[BlackElo "2329"]
[Result "0-1"]
[Round "06"]
[TimeControl "180+2"]
[Date "2022.12.27"]
[WhiteClock "0:00:01"]
[BlackClock "0:00:04"]

1. h4 {[%clk 0:02:51]}  h5 {[%clk 0:02:51]} 2. Nf3 {[%clk 0:02:34]}  Nf6 {[%clk 0:02:51]} 3. Ng5 {[%clk 0:02:34]}  d5 {[%clk 0:02:44]} 4. e4 {[%clk 0:02:33]}  dxe4 {[%clk 0:02:44]} 5. Nc3 {[%clk 0:02:33]}  Bf5 {[%clk 0:02:43]} 6. Qe2 {[%clk 0:02:31]}  Nc6 {[%clk 0:02:43]} 7. Qb5 {[%clk 0:02:28]}  e6 {[%clk 0:02:27]} 8. Qxb7 {[%clk 0:02:20]}  Nd4 {[%clk 0:01:51]} 9. Bb5+ {[%clk 0:02:14]}  Ke7 {[%clk 0:01:51]} 10. O-O {[%clk 0:02:05]}  Rb8 {[%clk 0:01:41]} 11. Qa6 {[%clk 0:02:05]}  Qd6 {[%clk 0:01:39]} 12. Qxd6+ {[%clk 0:02:01]}  cxd6 {[%clk 0:01:37]} 13. Ba4 {[%clk 0:02:02]}  d5 {[%clk 0:01:19]} 14. d3 {[%clk 0:01:47]}  exd3 {[%clk 0:01:12]} 15. cxd3 {[%clk 0:01:48]}  Nh7 {[%clk 0:01:05]} 16. Be3 {[%clk 0:01:35]}  Nxg5 {[%clk 0:00:28]} 17. Bxd4 {[%clk 0:01:32]}  Nh7 {[%clk 0:00:26]} 18. Rfe1 {[%clk 0:01:22]}  Nf6 {[%clk 0:00:19]} 19. Bxa7 {[%clk 0:01:16]}  Rxb2 {[%clk 0:00:18]} 20. Bd4 {[%clk 0:01:15]}  Rb4 {[%clk 0:00:17]} 21. Bc5+ {[%clk 0:01:15]}  Kd8 {[%clk 0:00:17]} 22. Bxb4 {[%clk 0:01:15]}  Bxb4 {[%clk 0:00:18]} 23. Rec1 {[%clk 0:01:13]}  Bxd3 {[%clk 0:00:11]} 24. Nb5 {[%clk 0:01:03]}  Bxb5 {[%clk 0:00:08]} 25. Bxb5 {[%clk 0:00:56]}  Ne4 {[%clk 0:00:08]} 26. Bd3 {[%clk 0:00:49]}  Nc5 {[%clk 0:00:06]} 27. a3 {[%clk 0:00:34]}  Nxd3 {[%clk 0:00:06]} 28. axb4 {[%clk 0:00:35]}  Kd7 {[%clk 0:00:04]} 29. Ra7+ {[%clk 0:00:34]}  Kd6 {[%clk 0:00:04]} 30. Rd1 {[%clk 0:00:29]}  Nxb4 {[%clk 0:00:04]} 31. Rxf7 {[%clk 0:00:30]}  Rg8 {[%clk 0:00:03]} 32. f4 {[%clk 0:00:28]}  Nc6 {[%clk 0:00:02]} 33. f5 {[%clk 0:00:27]}  exf5 {[%clk 0:00:02]} 34. Rxf5 {[%clk 0:00:26]}  d4 {[%clk 0:00:01]} 35. Rxh5 {[%clk 0:00:26]}  Re8 {[%clk 0:00:01]} 36. Rg5 {[%clk 0:00:25]}  Re7 {[%clk 0:00:01]} 37. Kh2 {[%clk 0:00:23]}  Rf7 {[%clk 0:00:01]} 38. Rg6+ {[%clk 0:00:22]}  Kd5 {[%clk 0:00:01]} 39. Rg5+ {[%clk 0:00:18]}  Ne5 {[%clk 0:00:02]} 40. Re1 {[%clk 0:00:17]}  Re7 {[%clk 0:00:02]} 41. Kg3 {[%clk 0:00:15]}  d3 {[%clk 0:00:03]} 42. Rd1 {[%clk 0:00:10]}  Kd4 {[%clk 0:00:03]} 43. Rf5 {[%clk 0:00:07]}  Ke4 {[%clk 0:00:02]} 44. Rff1 {[%clk 0:00:05]}  Kd4 {[%clk 0:00:03]} 45. Rfe1 {[%clk 0:00:05]}  Kc3 {[%clk 0:00:02]} 46. Rc1+ {[%clk 0:00:05]}  Kd2 {[%clk 0:00:02]} 47. Rcd1+ {[%clk 0:00:05]}  Kc3 {[%clk 0:00:02]} 48. Ra1 {[%clk 0:00:06]}  d2 {[%clk 0:00:02]} 49. Red1 {[%clk 0:00:04]}  Kc2 {[%clk 0:00:03]} 50. Rf1 {[%clk 0:00:03]}  Nd3 {[%clk 0:00:03]} 51. Ra2+ {[%clk 0:00:03]}  Nb2 {[%clk 0:00:04]} 52. Rf2 {[%clk 0:00:02]}  Kc1 {[%clk 0:00:03]} 53. Rxb2 {[%clk 0:00:02]}  d1=Q {[%clk 0:00:04]} 54. Ra2 {[%clk 0:00:02]}  Qd6+ {[%clk 0:00:04]} 55. Kh3 {[%clk 0:00:01]}  Re3+ {[%clk 0:00:04]} 0-1


[Site "https://www.chess.com"]